fUST/lending_fUST_20240315
["ID","MTS","AMOUNT","RATE_DAILY","PERIOD"]
[318882832,1710443438851,-644.34402201,0.00022225,2]
[318882834,1710443438860,-500.0,0.00022225,2]
[318882836,1710443438869,-570.46041641,0.00022225,2]
[318882838,1710443438879,-500.0,0.00022225,2]
[318882840,1710443438888,-500.0,0.00022225,2]
[318882842,1710443438897,-500.0,0.00022225,2]
[318882843,1710443438906,-500.0,0.00022225,2]
[318882845,1710443438915,-500.0,0.00022225,2]
[318882847,1710443438925,-500.0,0.00022225,2]
[318882849,1710443438934,-500.0,0.00022225,2]
[318882851,1710443438943,-299.50685638,0.00022225,2]
[318882853,1710443438952,-500.0,0.00022225,2]
[318882855,1710443438961,-500.0,0.00022225,2]
[318882857,1710443438971,-500.0,0.00022225,2]
[318882859,1710443438980,-401.60685203,0.00022225,2]
[318882861,1710443438993,-500.0,0.00022225,2]
[318882863,1710443439002,-500.0,0.00022225,2]
[318882865,1710443439012,-500.0,0.00022225,2]
[318882867,1710443439021,-500.0,0.00022225,2]
[318882869,1710443439031,-500.0,0.00022225,2]
[318882871,1710443439040,-509.39330348,0.00022225,2]
[318882873,1710443439049,-216.87758296,0.00022225,2]
[318882875,1710443439058,-500.0,0.00022225,2]
[318882877,1710443439067,-500.0,0.00022225,2]
[318882879,1710443439077,-500.0,0.00022225,2]
[318882881,1710443439086,-500.0,0.00022225,2]
[318882883,1710443439095,-500.0,0.00022226,2]
[318882885,1710443439107,-500.0,0.00022226,2]
[318882887,1710443439117,-500.0,0.00022226,2]
[318882889,1710443439126,-500.0,0.00022226,2]
[318882891,1710443439135,-500.0,0.00022226,2]
[318882893,1710443439144,-500.0,0.00022226,2]
[318882895,1710443439155,-500.0,0.00022226,2]
[318882897,1710443439164,-500.0,0.00022226,2]
[318882899,1710443439174,-7794.50595341,0.00022226,2]
[318882901,1710443439183,-404.39010484,0.00022226,2]
[318882903,1710443439192,-310.21407205,0.00022226,2]
[318882905,1710443439201,-199.94838924,0.00022226,2]
[318882907,1710443439211,-2258.0109738,0.00022226,2]
[318882909,1710443439220,-331.46232898,0.00022226,2]
[318882911,1710443439230,-187.97040824,0.00022226,2]
[318882913,1710443439240,-1428.6,0.00022226,2]
[318882915,1710443439249,-500.0,0.00022227,2]
[318882917,1710443439258,-500.0,0.00022227,2]
[318882919,1710443439267,-500.0,0.00022227,2]
[318882921,1710443439275,-500.0,0.00022227,2]
[318882923,1710443439284,-500.0,0.00022227,2]
[318882925,1710443439295,-590.60506884,0.00022227,2]
[318882927,1710443439304,-500.0,0.00022227,2]
[318882929,1710443439313,-311.57398225,0.00022227,2]
[318882930,1710443439322,-261.49695275,0.00022227,2]
[318882932,1710443439331,-554.86894518,0.00022227,2]
[318882934,1710443439340,-500.0,0.00022227,2]
[318882937,1710443439351,-500.0,0.00022227,2]
[318882938,1710443439362,-500.0,0.00022227,2]
[318882940,1710443439371,-500.0,0.00022227,2]
[318882942,1710443439380,-500.0,0.00022227,2]
[318882944,1710443439390,-500.0,0.00022227,2]
[318882946,1710443439399,-500.0,0.00022227,2]
[318882948,1710443439408,-504.18747032,0.00022227,2]
[318882950,1710443439418,-290.59,0.00022227,2]
[318882953,1710443439427,-500.0,0.00022227,2]
[318882955,1710443439436,-500.0,0.00022227,2]
[318882956,1710443439447,-500.0,0.00022227,2]
[318882958,1710443439457,-500.0,0.00022227,2]
[318882960,1710443439466,-500.0,0.00022227,2]
[318882962,1710443439475,-500.0,0.00022227,2]
[318882964,1710443439484,-500.0,0.00022227,2]
[318882966,1710443439495,-265.93855208,0.00022227,2]
[318882968,1710443439504,-500.0,0.00022227,2]
[318882970,1710443439513,-500.0,0.00022227,2]
[318882972,1710443439522,-500.0,0.00022227,2]
[318882974,1710443439532,-500.0,0.00022227,2]
[318882976,1710443439541,-244.13244595,0.00022227,2]
[318882978,1710443439550,-500.0,0.00022227,2]
[318882980,1710443439561,-500.0,0.00022227,2]
[318882982,1710443439570,-500.0,0.00022227,2]
[318882984,1710443439579,-500.0,0.00022227,2]
[318882986,1710443439589,-342.27865408,0.00022227,2]
[318882988,1710443439598,-500.0,0.00022227,2]
[318882990,1710443439608,-500.0,0.00022227,2]
[318882992,1710443439617,-500.0,0.00022227,2]
[318882994,1710443439627,-500.0,0.00022227,2]
[318882996,1710443439636,-644.42187571,0.00022227,2]
[318882998,1710443439646,-500.0,0.00022227,2]
[318883000,1710443439655,-500.0,0.00022227,2]
[318883003,1710443439664,-500.0,0.00022227,2]
[318883006,1710443439685,-500.0,0.00022227,2]
[318883008,1710443439694,-500.0,0.00022227,2]
[318883010,1710443439704,-500.0,0.00022227,2]
[318883012,1710443439713,-500.0,0.00022227,2]
[318883014,1710443439722,-353.84221465,0.00022227,2]
[318883016,1710443439731,-500.30905588,0.00022227,2]
[318883018,1710443439742,-500.0,0.00022227,2]
[318883020,1710443439751,-500.0,0.00022227,2]
[318883022,1710443439761,-500.0,0.00022227,2]
[318883024,1710443439770,-500.0,0.00022227,2]
[318883026,1710443439779,-500.0,0.00022227,2]
[318883028,1710443439788,-568.36,0.00022227,2]
[318883030,1710443439797,-500.0,0.00022227,2]
[318883032,1710443439807,-452.12528904,0.00022227,2]
[318883034,1710443439816,-500.0,0.00022227,2]
[318883036,1710443439825,-500.0,0.00022227,2]
[318883038,1710443439834,-500.0,0.00022227,2]
[318883040,1710443439843,-3222.73716798,0.00022227,2]
[318883042,1710443439853,-504.13656429,0.00022263,2]
[318883044,1710443439862,-264.93177138,0.00022264,3]
[318883046,1710443439871,-38400.73389543,0.00022264,60]
[318883048,1710443439886,-1252.50584317,0.00022264,60]
[318883131,1710443440604,-500.0,0.00022167,2]
[318883134,1710443440614,-500.0,0.00022167,2]
[318883136,1710443440625,-308.00001,0.00022167,2]
[318883138,1710443440637,-191.99999,0.00022167,2]
[318883140,1710443440646,-1327.88968465,0.00022264,60]
[318883142,1710443440657,-5876.69189533,0.00022264,60]
[318883144,1710443440669,-7547.99999996,0.00022264,60]
[318883146,1710443440681,-70129.718362,0.00022264,60]
[318883149,1710443440692,-141354.10925092,0.00022264,60]
[318883151,1710443440704,-556328.0,0.00022264,60]
[318883154,1710443440727,-500.0,0.00022226,2]
[318883156,1710443440737,-10533.03599974,0.00022264,60]
[318883159,1710443440752,-4112.51007392,0.00022264,60]
[318883161,1710443440764,-43336.56955116,0.00022264,60]
[318883163,1710443440776,-88848.24123937,0.00022264,60]
[318883786,1710443446645,-738.79744283,0.00021945,2]
[318883789,1710443446654,-157.45523329,0.00022262,2]
[318883792,1710443446662,-500.0,0.00022263,2]
[318883795,1710443446672,-500.0,0.00022263,2]
[318883797,1710443446681,-500.0,0.00022263,2]
[318883799,1710443446690,-343.68,0.00022263,2]
[318883801,1710443446699,-123.74589298,0.00022264,60]
[318883804,1710443446711,-2835.0,0.00022264,60]
[318883806,1710443446722,-18902.62000001,0.00022264,60]
[318883808,1710443446735,-14106.81469664,0.00022264,60]
[318883810,1710443446747,-10192.20036646,0.00022264,60]
[318883903,1710443447612,-459.20355537,0.00022098,2]
[318883905,1710443447622,-671.15943116,0.00022264,60]
[318883907,1710443447633,-4790.299666,0.00022264,60]
[318883909,1710443447645,-36101.42901459,0.00022264,60]
[318883912,1710443447656,-4776.35228968,0.00022264,60]
[318884803,1710443456974,545.04966652,0.00017,5]
[318892947,1710443545942,-596.57191089,0.00018621,2]
[318892950,1710443545975,-155.15826143,0.00018622,2]
[318892951,1710443546008,-1475.34309097,0.00018623,2]
[318892952,1710443546042,-26757.159,0.00018624,7]
[318893007,1710444000512,1000.0,0.00025,120]
[318893008,1710444010605,635.16191345,0.00017875,2]
[318893138,1710444295929,-155.16602765,0.00018096,2]
[318893139,1710444295951,-331.46232898,0.00018097,2]
[318893140,1710444295974,-61.37164337,0.00018098,2]
[318893141,1710444298375,-155.16602765,0.00018095,2]
[318893142,1710444298414,-93.79283097,0.00018098,2]
[318893250,1710444633283,-6505.31811642,0.00018354,2]
[318893251,1710444633316,-35286.70454296,0.00018355,2]
[318893253,1710444633330,-12400.55782307,0.00018355,2]
[318893255,1710444633341,-155.16447434,0.00018355,2]
[318893258,1710444633355,-7371.3396322,0.00018356,2]
[318893261,1710444633366,-172.547835,0.00018356,2]
[318893266,1710444633378,-620.75809567,0.00018769,2]
[318893269,1710444633389,-426.0339865,0.00019283,2]
[318893272,1710444633401,-500.0,0.00019381,2]
[318893275,1710444633413,-176.0,0.00019608,2]
[318893280,1710444633425,-620.03790478,0.00019707,2]
[318893283,1710444633437,-15264.4231076,0.00019796,2]
[318893286,1710444633449,-177.0,0.00019882,2]
[318893290,1710444633461,-426.03398648,0.00019993,2]
[318893294,1710444633474,-155.16602765,0.0002,2]
[318893297,1710444633486,-2000.0,0.00020519,2]
[318893300,1710444633500,-426.03398648,0.00020704,2]
[318893303,1710444633512,-2000.0,0.00020953,2]
[318893306,1710444633523,-500.0,0.00021228,7]
[318893309,1710444633538,-500.0,0.00021228,7]
[318893311,1710444633548,-500.0,0.00021228,7]
[318893313,1710444633557,-500.0,0.00021228,7]
[318893315,1710444633567,-159.18,0.00021228,7]
[318893317,1710444633580,-455.0529343,0.00021315,2]
[318893319,1710444633589,-2000.0,0.00021386,2]
[318893321,1710444633599,-426.03398648,0.00021414,2]
[318893323,1710444633609,-201.0348663,0.00021452,2]
[318893325,1710444633620,-4224.79769627,0.00021595,5]
[318893327,1710444633630,-246.4184521,0.00021752,2]
[318893329,1710444633641,-170.61938816,0.00021911,2]
[318893331,1710444633652,-500.0,0.00021912,2]
[318893332,1710444633663,-10993.07389364,0.00021913,2]
[318893333,1710444633674,-177.0063711,0.00021918,2]
[318893334,1710444633685,-155.0,0.00021918,2]
[318893335,1710444633696,-971.47880662,0.00022,2]
[318893336,1710444633706,-3845.65253146,0.00022,2]
[318893339,1710444633717,-10932.189125,0.00022,2]
[318893340,1710444633727,-362.66080603,0.00022,2]
[318893342,1710444633737,-171.05068637,0.0002204,2]
[318893344,1710444633747,-581.0,0.000221,2]
[318893346,1710444633757,-426.03398648,0.00022124,2]
[318893348,1710444633767,-500.0,0.00022127,2]
[318893350,1710444633777,-303.2013292,0.00022127,2]
[318893351,1710444633793,-6839.60776921,0.00022163,2]
[318893353,1710444633805,-500.0,0.00022166,2]
[318893355,1710444633815,-500.0,0.00022167,2]
[318893357,1710444633827,-500.0,0.00022167,2]
[318893359,1710444633839,-500.0,0.00022167,2]
[318893361,1710444633850,-500.0,0.00022167,2]
[318893363,1710444633861,-215.74447393,0.00022167,2]
[318893365,1710444633872,-500.0,0.00022167,2]
[318893367,1710444633883,-500.0,0.00022167,2]
[318893369,1710444633893,-500.0,0.00022167,2]
[318893371,1710444633904,-500.0,0.00022167,2]
[318893373,1710444633914,-500.0,0.00022167,2]
[318893378,1710444634039,-502.44003634,0.00022167,2]
[318893379,1710444634052,-500.0,0.00022167,2]
[318893380,1710444634062,-500.0,0.00022167,2]
[318893381,1710444634071,-500.0,0.00022167,2]
[318893382,1710444634081,-500.0,0.00022167,2]
[318893383,1710444634090,-500.0,0.00022167,2]
[318893384,1710444634100,-500.0,0.00022167,2]
[318893385,1710444634109,-500.0,0.00022167,2]
[318893386,1710444634118,-500.0,0.00022167,2]
[318893387,1710444634127,-265.86781922,0.00022167,2]
[318893388,1710444634136,-1681.82954306,0.0002217,2]
[318893389,1710444634146,-174.0,0.000222,2]
[318893390,1710444634156,-501.06861781,0.00022223,2]
[318893391,1710444634165,-500.0,0.00022223,2]
[318893392,1710444634175,-500.0,0.00022223,2]
[318893393,1710444634185,-500.0,0.00022223,2]
[318893394,1710444634195,-500.0,0.00022223,2]
[318893395,1710444634205,-500.0,0.00022223,2]
[318893396,1710444634214,-500.0,0.00022223,2]
[318893397,1710444634224,-500.0,0.00022223,2]
[318893398,1710444634233,-500.0,0.00022223,2]
[318893399,1710444634243,-505.77958517,0.00022223,2]
[318893400,1710444634255,-506.59537522,0.00022223,2]
[318893401,1710444634264,-500.0,0.00022223,2]
[318893402,1710444634273,-500.0,0.00022223,2]
[318893403,1710444634286,-500.0,0.00022223,2]
[318893404,1710444634296,-500.0,0.00022223,2]
[318893405,1710444634306,-500.0,0.00022223,2]
[318893406,1710444634315,-500.0,0.00022223,2]
[318893407,1710444634324,-501.76077933,0.00022223,2]
[318893408,1710444634334,-716.98,0.00022223,2]
[318893409,1710444634343,-716.98,0.00022223,2]
[318893410,1710444634353,-716.98,0.00022223,2]
[318893411,1710444634362,-716.98,0.00022223,2]
[318893412,1710444634372,-1849.81,0.00022223,2]
[318893413,1710444634381,-1849.81,0.00022223,2]
[318893414,1710444634390,-1849.81,0.00022223,2]
[318893415,1710444634399,-1849.81,0.00022223,2]
[318893416,1710444634409,-500.0,0.00022223,2]
[318893417,1710444634418,-500.0,0.00022223,2]
[318893418,1710444634427,-500.0,0.00022223,2]
[318893419,1710444634436,-500.0,0.00022223,2]
[318893420,1710444634445,-500.0,0.00022223,2]
[318893421,1710444634455,-500.0,0.00022223,2]
[318893422,1710444634465,-500.0,0.00022223,2]
[318893423,1710444634474,-500.0,0.00022223,2]
[318893424,1710444634483,-500.0,0.00022223,2]
[318893425,1710444634493,-501.08597932,0.00022223,2]
[318893426,1710444634502,-500.0,0.00022223,2]
[318893427,1710444634513,-533.83790093,0.00022223,2]
[318893428,1710444634522,-502.26125973,0.00022223,2]
[318893429,1710444634533,-500.0,0.00022224,2]
[318893430,1710444634542,-500.0,0.00022224,2]
[318893431,1710444634551,-500.0,0.00022224,2]
[318893432,1710444634560,-500.0,0.00022224,2]
[318893433,1710444634569,-174.62493157,0.00022224,2]
[318893457,1710444638850,-171.05068638,0.0002204,2]
[318893458,1710444638859,-325.37506843,0.00022224,2]
[318893459,1710444638869,-500.0,0.00022224,2]
[318893460,1710444638878,-500.0,0.00022224,2]
[318893461,1710444638888,-500.0,0.00022224,2]
[318893462,1710444638897,-500.0,0.00022224,2]
[318893463,1710444638907,-444.80791818,0.00022224,2]
[318893464,1710444638915,-500.0,0.00022224,2]
[318893465,1710444638925,-500.0,0.00022224,2]
[318893466,1710444638935,-500.0,0.00022224,2]
[318893467,1710444638944,-500.0,0.00022224,2]
[318893468,1710444638953,-500.0,0.00022224,2]
[318893469,1710444638962,-500.0,0.00022224,2]
[318893470,1710444638971,-500.0,0.00022224,2]
[318893471,1710444638980,-189.85328563,0.00022224,2]
[318893472,1710444638992,-124.36760506,0.00022224,2]
[318893473,1710444639001,-153.33222494,0.00022224,2]
[318893474,1710444639012,-10.27529431,0.00022224,2]
[318893475,1710444639021,-500.0,0.00022224,2]
[318893476,1710444639030,-500.0,0.00022224,2]
[318893477,1710444639042,-500.0,0.00022224,2]
[318893478,1710444639053,-500.0,0.00022224,2]
[318893479,1710444639063,-500.0,0.00022224,2]
[318893480,1710444639073,-314.82098643,0.00022224,2]
[318893481,1710444639083,-407.45209129,0.00022224,2]
[318893482,1710444639092,-130.66999216,0.00022224,2]
[318893483,1710444639104,-369.33000784,0.00022224,2]
[318893484,1710444639113,-500.0,0.00022224,2]
[318893485,1710444639123,-500.0,0.00022224,2]
[318893486,1710444639134,-500.0,0.00022224,2]
[318893487,1710444639143,-502.06426051,0.00022224,2]
[318893488,1710444639153,-420.07037669,0.00022224,2]
[318893489,1710444639163,-500.0,0.00022224,2]
[318893490,1710444639173,-626.08031246,0.00022224,2]
[318893491,1710444639183,-500.0,0.00022224,2]
[318893492,1710444639192,-649.75757445,0.00022224,2]
[318893493,1710444639203,-500.0,0.00022224,2]
[318893494,1710444639212,-661.82,0.00022224,2]
[318893495,1710444639222,-661.82,0.00022224,2]
[318893496,1710444639231,-500.0,0.00022224,2]
[318893497,1710444639241,-500.0,0.00022224,2]
[318893498,1710444639251,-661.82,0.00022224,2]
[318893499,1710444639260,-303.18939654,0.00022224,2]
[318893500,1710444639269,-504.0926397,0.00022224,2]
[318893501,1710444639279,-661.82,0.00022224,2]
[318893502,1710444639293,-500.0,0.00022224,2]
[318893503,1710444639304,-500.0,0.00022224,2]
[318893504,1710444639314,-500.0,0.00022224,2]
[318893505,1710444639328,-500.0,0.00022224,2]
[318893506,1710444639338,-645.99976565,0.00022224,2]
[318893507,1710444639349,-500.0,0.00022224,2]
[318893508,1710444639359,-500.0,0.00022224,2]
[318893509,1710444639369,-501.03893,0.00022224,2]
[318893510,1710444639379,-500.0,0.00022224,2]
[318893511,1710444639391,-500.0,0.00022224,2]
[318893512,1710444639402,-500.0,0.00022224,2]
[318893513,1710444639413,-500.0,0.00022224,2]
[318893514,1710444639425,-502.88494693,0.00022224,2]
[318893515,1710444639435,-500.0,0.00022224,2]
[318893516,1710444639447,-500.0,0.00022224,2]
[318893517,1710444639457,-500.0,0.00022224,2]
[318893518,1710444639470,-500.0,0.00022224,2]
[318893519,1710444639481,-500.0,0.00022224,2]
[318893520,1710444639491,-500.0,0.00022224,2]
[318893521,1710444639507,-500.0,0.00022224,2]
[318893522,1710444639518,-500.0,0.00022224,2]
[318893523,1710444639528,-500.0,0.00022224,2]
[318893524,1710444639540,-500.0,0.00022224,2]
[318893525,1710444639551,-500.0,0.00022224,2]
[318893526,1710444639562,-1698.37,0.00022224,2]
[318893527,1710444639571,-1698.37,0.00022224,2]
[318893528,1710444639583,-1698.37,0.00022224,2]
[318893529,1710444639592,-1698.37,0.00022224,2]
[318893530,1710444639603,-500.0,0.00022224,2]
[318893531,1710444639613,-500.0,0.00022224,2]
[318893532,1710444639623,-500.0,0.00022224,2]
[318893533,1710444639633,-500.0,0.00022224,2]
[318893534,1710444639643,-203.41095298,0.00022224,2]
[318893535,1710444639654,-500.0,0.00022224,2]
[318893536,1710444639664,-500.0,0.00022224,2]
[318893538,1710444639675,-500.0,0.00022224,2]
[318893539,1710444639686,-194.84140707,0.00022224,2]
[318893541,1710444639696,-514.198311,0.00022224,2]
[318893543,1710444639706,-500.0,0.00022224,2]
[318893544,1710444639716,-500.0,0.00022224,2]
[318893546,1710444639727,-500.0,0.00022224,2]
[318893547,1710444639736,-339.40541378,0.00022224,2]
[318893548,1710444639745,-530.19820949,0.00022224,2]
[318893549,1710444639755,-500.0,0.00022225,2]
[318893550,1710444639765,-500.0,0.00022225,2]
[318893552,1710444639774,-500.0,0.00022225,2]
[318893554,1710444639784,-500.0,0.00022225,2]
[318893556,1710444639799,-500.0,0.00022225,2]
[318893558,1710444639808,-500.0,0.00022225,2]
[318893560,1710444639818,-584.22710179,0.00022225,2]
[318893562,1710444639828,-500.0,0.00022225,2]
[318893564,1710444639838,-500.0,0.00022225,2]
[318893566,1710444639847,-500.0,0.00022225,2]
[318893568,1710444639856,-500.0,0.00022225,2]
[318893570,1710444639866,-500.0,0.00022225,2]
[318893571,1710444639875,-500.0,0.00022225,2]
[318893574,1710444639886,-512.5620293,0.00022225,2]
[318893576,1710444639895,-500.0,0.00022225,2]
[318893578,1710444639906,-500.0,0.00022225,2]
[318893580,1710444639916,-500.0,0.00022225,2]
[318893582,1710444639926,-500.0,0.00022225,2]
[318893584,1710444639936,-500.0,0.00022225,2]
[318893586,1710444639945,-500.0,0.00022225,2]
[318893588,1710444639954,-374.31629048,0.00022225,2]
[318893590,1710444639965,-500.0,0.00022225,2]
[318893592,1710444639974,-500.0,0.00022225,2]
[318893594,1710444639984,-500.0,0.00022225,2]
[318893596,1710444639994,-500.0,0.00022225,2]
[318893598,1710444640003,-500.0,0.00022225,2]
[318893600,1710444640013,-493.69800687,0.00022225,2]
[318893602,1710444640022,-500.0,0.00022225,2]
[318893604,1710444640031,-500.0,0.00022225,2]
[318893606,1710444640045,-500.0,0.00022225,2]
[318893608,1710444640055,-500.0,0.00022225,2]
[318893610,1710444640064,-500.0,0.00022225,2]
[318893611,1710444640074,-500.0,0.00022225,2]
[318893614,1710444640084,-500.0,0.00022225,2]
[318893615,1710444640093,-155.57335555,0.00022225,2]
[318893618,1710444640103,-500.0,0.00022225,2]
[318893620,1710444640114,-500.0,0.00022225,2]
[318893622,1710444640124,-595.58,0.00022225,2]
[318893623,1710444640133,-583.46872863,0.00022225,2]
[318893626,1710444640145,-500.0,0.00022225,2]
[318893628,1710444640154,-500.0,0.00022225,2]
[318893631,1710444640164,-500.0,0.00022225,2]
[318893633,1710444640175,-500.0,0.00022225,2]
[318893635,1710444640185,-500.0,0.00022225,2]
[318893637,1710444640195,-500.0,0.00022225,2]
[318893639,1710444640206,-499.58066065,0.00022225,2]
[318893641,1710444640217,-500.0,0.00022225,2]
[318893643,1710444640226,-791.78,0.00022225,2]
[318893646,1710444640237,-791.78,0.00022225,2]
[318893650,1710444640247,-791.78,0.00022225,2]
[318893655,1710444640257,-791.78,0.00022225,2]
[318893657,1710444640268,-500.0,0.00022225,2]
[318893659,1710444640278,-500.0,0.00022225,2]
[318893662,1710444640296,-716.98,0.00022225,2]
[318893665,1710444640307,-1849.81,0.00022225,2]
[318893667,1710444640322,-500.0,0.00022226,2]
[318893670,1710444640332,-500.0,0.00022226,2]
[318893673,1710444640342,-5199.40821936,0.00022248,2]
[318893676,1710444640352,-500.0,0.00022261,2]
[318893679,1710444640362,-500.0,0.00022261,2]
[318893682,1710444640373,-716.98,0.00022261,2]
[318893685,1710444640384,-1849.81,0.00022261,2]
[318893687,1710444640395,-237.65487316,0.00022262,2]
[318893689,1710444640405,-338.7091611,0.00022262,2]
[318893691,1710444640416,-155.69380675,0.00022262,2]
[318893693,1710444640427,-310.25285782,0.00022262,2]
[318893695,1710444640437,-208.43582616,0.00022262,2]
[318893697,1710444640448,-274.38308574,0.00022262,2]
[318893699,1710444640458,-199.59737851,0.00022262,2]
[318893701,1710444640471,-310.3970439,0.00022262,2]
[318893702,1710444640483,-2020.56022276,0.00022262,2]
[318893705,1710444640493,-263.23365243,0.00022262,2]
[318893706,1710444640503,-191.54405702,0.00022262,2]
[318893708,1710444640516,-884.38898759,0.00022262,2]
[318893710,1710444640527,-636.42168661,0.00022262,2]
[318893713,1710444640543,-528.65561539,0.00022262,2]
[318893714,1710444640554,-211.97574014,0.00022262,2]
[318893716,1710444640565,-559.91762325,0.00022262,2]
[318893727,1710444640655,-597.88557795,0.00022262,2]
[318893729,1710444640667,-1474.01036662,0.00022262,2]
[318893731,1710444640679,-500.0,0.00022262,2]
[318893733,1710444640690,-500.0,0.00022262,2]
[318893735,1710444640701,-500.0,0.00022262,2]
[318893737,1710444640711,-618.34300887,0.00022262,2]
[318893739,1710444640721,-500.0,0.00022262,2]
[318893741,1710444640733,-500.0,0.00022262,2]
[318893743,1710444640743,-500.0,0.00022262,2]
[318893745,1710444640753,-500.0,0.00022262,2]
[318893747,1710444640763,-429.53958359,0.00022262,2]
[318893749,1710444640772,-317.41386845,0.00022262,2]
[318893751,1710444640782,-500.0,0.00022262,2]
[318893753,1710444640799,-312.5457991,0.00022262,2]
[318893755,1710444640808,-500.0,0.00022262,2]
[318893757,1710444640818,-500.0,0.00022262,2]
[318893759,1710444640828,-500.0,0.00022262,2]
[318893761,1710444640837,-502.84436943,0.00022262,2]
[318893763,1710444640847,-500.0,0.00022262,2]
[318893765,1710444640856,-500.0,0.00022262,2]
[318893767,1710444640865,-500.0,0.00022262,2]
[318893769,1710444640874,-500.0,0.00022262,2]
[318893771,1710444640884,-500.0,0.00022262,2]
[318893773,1710444640893,-500.0,0.00022262,2]
[318893775,1710444640903,-500.0,0.00022262,2]
[318893777,1710444640912,-502.50733847,0.00022262,2]
[318893779,1710444640923,-661.82,0.00022262,2]
[318893781,1710444640934,-661.82,0.00022262,2]
[318893783,1710444640944,-661.82,0.00022262,2]
[318893785,1710444640954,-661.82,0.00022262,2]
[318893787,1710444640964,-661.82,0.00022262,2]
[318893789,1710444640974,-536.06399119,0.00022262,2]
[318893791,1710444640985,-500.0,0.00022262,2]
[318893793,1710444640995,-500.0,0.00022262,2]
[318893795,1710444641005,-609.35561256,0.00022262,2]
[318893797,1710444641014,-791.78,0.00022262,2]
[318893799,1710444641025,-791.78,0.00022262,2]
[318893801,1710444641041,-791.78,0.00022262,2]
[318893803,1710444641051,-791.78,0.00022262,2]
[318893804,1710444641061,-500.0,0.00022262,2]
[318893807,1710444641071,-1698.37,0.00022262,2]
[318893809,1710444641081,-500.0,0.00022262,2]
[318893810,1710444641091,-1698.37,0.00022262,2]
[318893813,1710444641100,-500.0,0.00022262,2]
[318893814,1710444641110,-1698.37,0.00022262,2]
[318893816,1710444641119,-645.15374119,0.00022262,2]
[318893818,1710444641129,-1698.37,0.00022262,2]
[318893821,1710444641139,-1698.37,0.00022262,2]
[318893822,1710444641149,-561.46642677,0.00022262,2]
[318893825,1710444641159,-716.98,0.00022262,2]
[318893826,1710444641169,-716.98,0.00022262,2]
[318893829,1710444641179,-716.98,0.00022262,2]
[318893830,1710444641189,-1849.81,0.00022262,2]
[318893833,1710444641199,-1849.81,0.00022262,2]
[318893835,1710444641209,-1849.81,0.00022262,2]
[318893837,1710444641219,-155.31466322,0.00022263,2]
[318893839,1710444641229,-163.35553047,0.00022263,2]
[318893841,1710444641239,-310.25285782,0.00022263,2]
[318893843,1710444641248,-240.89644182,0.00022263,2]
[318893845,1710444641258,-42404.19125892,0.00022263,7]
[318893847,1710444641267,-1161.64510467,0.00022263,2]
[318893849,1710444641277,-210.74134935,0.00022263,2]
[318893851,1710444641291,-3430.7329,0.00022263,2]
[318893852,1710444641300,-155.34799879,0.00022263,2]
[318893854,1710444641310,-169.24054627,0.00022263,2]
[318893857,1710444641320,-155.5463427,0.00022263,2]
[318893858,1710444641330,-187.37817515,0.00022263,2]
[318893860,1710444641340,-324.21878164,0.00022263,2]
[318893862,1710444641350,-155.45080734,0.00022263,2]
[318893864,1710444641359,-184.71260849,0.00022263,2]
[318893866,1710444641368,-400.0,0.00022263,2]